fUST/lending_fUST_20250901
["ID","MTS","AMOUNT","RATE_DAILY","PERIOD"]
[382547859,1756663971769,10000.01,0.00016698,2]
[382547860,1756663971792,10000.01,0.00016698,2]
[382547861,1756663971813,10000.01,0.00016698,2]
[382547862,1756663971835,1346.18863321,0.00016698,2]
[382547863,1756663971856,5000.0,0.00016698,2]
[382547864,1756663971877,5000.0,0.00016698,2]
[382547865,1756663971898,5000.0,0.00016698,2]
[382547866,1756663971919,5000.0,0.00016698,2]
[382547867,1756663971941,5000.0,0.00016698,2]
[382547868,1756663971963,5000.0,0.00016698,2]
[382547869,1756663971986,5000.0,0.00016698,2]
[382547870,1756663972008,5000.0,0.00016698,2]
[382547871,1756663972030,5000.0,0.00016698,2]
[382547872,1756663972053,5000.0,0.00016698,2]
[382547873,1756663972076,5000.0,0.00016698,2]
[382547874,1756663972099,5000.0,0.00016698,2]
[382547875,1756663972121,5000.0,0.00016698,2]
[382547876,1756663972144,5000.0,0.00016698,2]
[382547877,1756663972167,5000.0,0.00016698,2]
[382547878,1756663972189,5000.0,0.00016698,2]
[382547879,1756663972213,5000.0,0.00016698,2]
[382547880,1756663972236,5000.0,0.00016698,2]
[382547881,1756663972259,5000.0,0.00016698,2]
[382547882,1756663972284,5000.0,0.00016698,2]
[382547883,1756663972307,5000.0,0.00016698,2]
[382547884,1756663972330,5000.0,0.00016698,2]
[382547885,1756663972355,5000.0,0.00016698,2]
[382547886,1756663972378,5000.0,0.00016698,2]
[382547887,1756663972401,5000.0,0.00016698,2]
[382547888,1756663972423,5000.0,0.00016698,2]
[382547889,1756663972445,5000.0,0.00016698,2]
[382547890,1756663972468,5000.0,0.00016698,2]
[382547891,1756663972491,5000.0,0.00016698,2]
[382547892,1756663972515,5000.0,0.00016698,2]
[382547893,1756663972538,5000.0,0.00016698,2]
[382547894,1756663972561,5000.0,0.00016698,2]
[382547895,1756663972585,5000.0,0.00016698,2]
[382547896,1756663972609,5000.0,0.00016698,2]
[382547897,1756663972630,5000.0,0.00016698,2]
[382547898,1756663972652,5000.0,0.00016698,2]
[382547899,1756663972675,5000.0,0.00016698,2]
[382547900,1756663972698,5000.0,0.00016698,2]
[382547901,1756663972720,5000.0,0.00016698,2]
[382547902,1756663972743,5000.0,0.00016698,2]
[382547903,1756663972765,5000.0,0.00016698,2]
[382547904,1756663972789,5000.0,0.00016698,2]
[382547905,1756663972813,5000.0,0.00016698,2]
[382547906,1756663972835,5000.0,0.00016698,2]
[382547907,1756663972858,5000.0,0.00016698,2]
[382547908,1756663972880,5000.0,0.00016698,2]
[382547909,1756663972902,5000.0,0.00016698,2]
[382547910,1756663972923,5000.0,0.00016698,2]
[382547911,1756663972946,5000.0,0.00016698,2]
[382547912,1756663972969,5000.0,0.00016698,2]
[382547913,1756663972992,5000.0,0.00016698,2]
[382547914,1756663973015,5000.0,0.00016698,2]
[382547915,1756663975249,5000.0,0.000165,2]
[382547916,1756663990912,5000.0,0.000165,2]
[382547917,1756663999306,0.01,0.000165,2]
[382547918,1756663999330,4999.99,0.000165,2]
[382547919,1756664007373,421.92430339,0.000165,2]
[382547920,1756664015671,4578.09569661,0.000165,2]
[382547921,1756664015695,421.90430339,0.000165,2]
[382547922,1756664024750,5000.0,0.000165,2]
[382547923,1756664038292,-164.69517072,0.00016529,2]
[382547924,1756664038314,-43.80865624,0.00016629,2]
[382547925,1756664040790,4578.10569661,0.000165,2]
[382547926,1756664040814,421.89430339,0.000165,2]
[382547927,1756664042836,-216.10032654,0.00016597,2]
[382547928,1756664044627,-29.24536183,0.00016597,2]
[382547929,1756664044651,-140.19134376,0.00016629,2]
[382547930,1756664044672,-35.88268183,0.00016696,2]
[382547931,1756664048931,5000.0,0.000165,2]
[382547932,1756664064272,4578.11569661,0.000165,2]
[382547933,1756664064305,421.88430339,0.000165,2]
[382547934,1756664072103,5000.0,0.000165,2]
[382547935,1756664087919,4578.12569661,0.000165,2]
[382547936,1756664087942,421.87430339,0.000165,2]
[382547937,1756664089397,156.0,8.5e-07,2]
[382547938,1756664090436,156.0,8.5e-07,2]
[382547939,1756664091670,156.0,8.5e-07,2]
[382547940,1756664092552,156.0,8.5e-07,2]
[382547941,1756664093594,156.0,8.5e-07,2]
[382547942,1756664094653,156.0,8.5e-07,2]
[382547943,1756664095700,5000.0,0.000165,2]
[382547944,1756664095867,156.0,8.5e-07,2]
[382547945,1756664097040,156.0,8.5e-07,2]
[382547946,1756664104383,3330.13569661,0.00015776,2]
[382547947,1756664104406,6669.86430339,0.00015776,2]
[382547948,1756664104553,-248.81748042,0.00016596,2]
[382547949,1756664107328,-51.18251958,0.00016596,2]
[382547950,1756664107353,-136.0,0.00016597,2]
[382547951,1756664112160,3330.14569661,0.000165,2]
[382547952,1756664112185,1669.85430339,0.000165,2]
[382547953,1756664120910,5000.0,0.000165,2]
[382547954,1756664137155,3330.15569661,0.000165,2]
[382547955,1756664137178,1669.84430339,0.000165,2]
[382547956,1756664143499,210.70985698,0.00016497,2]
[382547957,1756664145495,5000.0,0.000165,2]
[382547958,1756664160983,3119.45583963,0.000165,2]
[382547959,1756664161007,1880.54416037,0.000165,2]
[382547960,1756664167206,8119.46583963,0.00016497,2]
[382547961,1756664167227,10000.01,0.00016497,2]
[382547962,1756664167248,10000.01,0.00016497,2]
[382547963,1756664167268,9226.35783258,0.00016497,2]
[382547964,1756664169283,773.65216742,0.000165,2]
[382547965,1756664169308,4226.34783258,0.000165,2]
[382547966,1756664177215,204.73403394,0.00016497,2]
[382547967,1756664185002,5000.0,0.000165,2]
[382547968,1756664191884,553.7180971,0.00015707,2]
[382547969,1756664192873,15.21003638,0.000165,2]
[382547970,1756664192897,4984.78996362,0.000165,2]
[382547971,1756664209166,5000.0,0.000165,2]
[382547972,1756664217695,15.22003638,0.000165,2]
[382547973,1756664217718,4984.77996362,0.000165,2]
[382547974,1756664232834,5000.0,0.000165,2]
[382547975,1756664241238,15.23003638,0.000165,2]
[382547976,1756664241261,4984.76996362,0.000165,2]
[382547977,1756664247682,-373.7464258,0.0001652,2]
[382547978,1756664250627,-155.18115816,0.0001652,2]
[382547979,1756664257533,5000.0,0.000165,2]
[382547980,1756664266754,15.24003638,0.000165,2]
[382547981,1756664266777,974.84761941,0.000165,2]
[382547982,1756664271989,153.039321,0.00016098,2]
[382547983,1756664272387,153.039321,0.00016104,2]
[382547984,1756664272679,153.039321,0.0001611,2]
[382547985,1756664273078,153.039321,0.00016116,2]
[382547986,1756664282466,5000.0,0.000165,2]
[382547987,1756664296025,1815.119802,0.00015665,2]
[382547988,1756664305341,1597.88529459,0.000165,2]
[382547989,1756664305365,3402.11470541,0.000165,2]
[382547990,1756664329247,5000.0,0.000165,2]
[382547991,1756664352891,1597.89529459,0.000165,2]
[382547992,1756664352914,3402.10470541,0.000165,2]
[382547993,1756664375744,5000.0,0.000165,2]
[382547994,1756664398419,1597.90529459,0.000165,2]
[382547995,1756664398447,3402.09470541,0.000165,2]
[382547996,1756664412612,-165.95271635,0.0001662,2]
[382547997,1756664416856,-153.9573891,0.0001662,2]
[382547998,1756664419006,-223.55501808,0.0001662,2]
[382547999,1756664420515,-239.25661785,0.0001662,2]
[382548000,1756664420906,5000.0,0.000165,2]
[382548001,1756664423940,-198.24171845,0.0001662,2]
[382548002,1756664426761,-300.0,0.0001662,2]
[382548003,1756664428885,-159.46790154,0.0001662,2]
[382548004,1756664431005,-197.77050349,0.0001662,2]
[382548005,1756664433384,-239.00746515,0.0001662,2]
[382548006,1756664435379,-265.31504505,0.0001662,2]
[382548007,1756664437038,-221.79796346,0.0001662,2]
[382548008,1756664438850,-284.49175939,0.0001662,2]
[382548009,1756664440761,-182.61270686,0.0001662,2]
[382548010,1756664444615,1597.91529459,0.000165,2]
[382548011,1756664444638,3402.08470541,0.000165,2]
[382548012,1756664446894,-9.3077616,0.0001662,2]
[382548013,1756664446919,-182.49258545,0.00016696,2]
[382548014,1756664450276,-117.50741455,0.00016696,2]
[382548015,1756664450299,-232.94984138,0.00016696,2]
[382548016,1756664453069,821.03561851,0.000165,2]
[382548017,1756664453185,-154.49997804,0.00016696,2]
[382548018,1756664455375,-236.51502708,0.00016597,2]
[382548019,1756664469018,5000.0,0.000165,2]
[382548020,1756664472323,-179.81912315,0.00016597,2]
[382548021,1756664476028,-376.78368623,0.00016597,2]
[382548022,1756664477061,242.0,0.00016391,2]
[382548023,1756664477463,416.33415023,0.000165,2]
[382548024,1756664478846,-154.29976482,0.00016597,2]
[382548025,1756664481319,-82.2283913,0.00016597,2]
[382548026,1756664490939,118.55552585,0.00015754,2]
[382548027,1756664490963,881.44447415,0.00015754,2]
[382548028,1756664492815,5000.0,0.000165,2]
[382548029,1756664500626,531.08345105,0.000165,2]
[382548030,1756664516313,3587.4820748,0.000165,2]
[382548031,1756664516345,1412.5179252,0.000165,2]
[382548032,1756664536963,-812.55018058,0.00016696,2]
[382548033,1756664536993,-300.0,0.00016696,2]
[382548034,1756664537024,-380.01389464,0.00016696,2]
[382548035,1756664537054,-500.0,0.00016697,2]
[382548036,1756664537279,-480.0,0.00016697,2]
[382548037,1756664537588,-887.77,0.00016697,2]
[382548038,1756664537618,-480.0,0.00016697,2]
[382548039,1756664537647,-530.14977801,0.00016697,2]
[382548040,1756664537678,-480.0,0.00016697,2]
[382548041,1756664537930,-480.0,0.00016697,2]
[382548042,1756664537960,-480.0,0.00016697,2]
[382548043,1756664537993,-480.0,0.00016697,2]
[382548044,1756664538023,-480.0,0.00016697,2]
[382548045,1756664538057,-480.0,0.00016697,2]
[382548046,1756664538291,-480.0,0.00016697,2]
[382548047,1756664538321,-480.0,0.00016697,2]
[382548048,1756664538686,-480.0,0.00016697,2]
[382548049,1756664538717,-480.0,0.00016697,2]
[382548050,1756664538746,-480.0,0.00016697,2]
[382548051,1756664539091,-480.0,0.00016697,2]
[382548052,1756664539121,-480.0,0.00016697,2]
[382548053,1756664539152,-480.0,0.00016697,2]
[382548054,1756664539181,-480.0,0.00016697,2]
[382548055,1756664539212,-480.0,0.00016697,2]
[382548056,1756664539523,-480.0,0.00016697,2]
[382548057,1756664539554,-480.0,0.00016697,2]
[382548058,1756664539586,-1011.34,0.00016697,2]
[382548059,1756664539614,-480.0,0.00016697,2]
[382548060,1756664540175,-480.0,0.00016697,2]
[382548061,1756664540204,-480.0,0.00016697,2]
[382548062,1756664540233,-480.0,0.00016697,2]
[382548063,1756664540263,-480.0,0.00016697,2]
[382548064,1756664540293,-480.0,0.00016697,2]
[382548065,1756664540346,2852.40127033,0.000165,2]
[382548066,1756664540707,-500.0,0.00016697,2]
[382548067,1756664540737,-618.67,0.00016697,2]
[382548068,1756664540769,-614.59,0.00016697,2]
[382548069,1756664540801,-480.0,0.00016697,2]
[382548070,1756664540831,-93.48,0.00016697,2]
[382548071,1756664541259,-386.52,0.00016697,2]
[382548072,1756664541288,-630.73,0.00016697,2]
[382548073,1756664541318,-687.79,0.00016697,2]
[382548074,1756664541347,-480.0,0.00016697,2]
[382548075,1756664541376,-149.92,0.00016697,2]
[382548076,1756664544978,-330.08,0.00016697,2]
[382548077,1756664545007,-480.0,0.00016697,2]
[382548078,1756664545036,-480.0,0.00016697,2]
[382548079,1756664545063,-480.0,0.00016697,2]
[382548080,1756664545091,-480.0,0.00016697,2]
[382548081,1756664545119,-19.84,0.00016697,2]
[382548082,1756664545589,-460.16,0.00016697,2]
[382548083,1756664545618,-480.0,0.00016697,2]
[382548084,1756664545647,-480.0,0.00016697,2]
[382548085,1756664545675,-480.0,0.00016697,2]
[382548086,1756664545704,-480.0,0.00016697,2]
[382548087,1756664545752,-480.0,0.00016697,2]
[382548088,1756664545781,-1876.93,0.00016697,2]
[382548089,1756664546454,-480.0,0.00016697,2]
[382548090,1756664546483,-480.0,0.00016697,2]
[382548091,1756664546517,-545.75,0.00016697,2]
[382548092,1756664546547,-630.49,0.00016697,2]
[382548093,1756664546576,-247.52,0.00016697,2]
[382548094,1756664546727,-232.48,0.00016697,2]
[382548095,1756664546758,-480.0,0.00016697,2]
[382548096,1756664546790,-480.0,0.00016697,2]
[382548097,1756664546823,-480.0,0.00016697,2]
[382548098,1756664546858,-480.0,0.00016697,2]
[382548099,1756664546906,-215.04,0.00016697,2]
[382548100,1756664547262,180.70105,7.888e-05,2]
[382548101,1756664547299,-264.96,0.00016697,2]
[382548102,1756664547328,-480.0,0.00016697,2]
[382548103,1756664547358,-796.43,0.00016697,2]
[382548104,1756664547387,-480.0,0.00016697,2]
[382548105,1756664547417,-477.22,0.00016697,2]
[382548106,1756664547838,180.70105,0.00010518,2]
[382548107,1756664547913,180.70105,0.00013147,2]
[382548108,1756664547948,-2.78,0.00016697,2]
[382548109,1756664547978,-480.0,0.00016697,2]
[382548110,1756664548006,-1769.63,0.00016697,2]
[382548111,1756664548095,180.70105,0.00015776,2]
[382548112,1756664548316,-841.54,0.00016697,2]
[382548113,1756664548345,-480.0,0.00016697,2]
[382548114,1756664548374,-480.0,0.00016697,2]
[382548115,1756664548402,-480.0,0.00016697,2]
[382548116,1756664548527,-480.0,0.00016697,2]
[382548117,1756664548557,-480.0,0.00016697,2]
[382548118,1756664548589,-480.0,0.00016697,2]
[382548119,1756664548619,-626.98,0.00016697,2]
[382548120,1756664549072,-1654.16,0.00016697,2]
[382548121,1756664549101,-480.0,0.00016697,2]
[382548122,1756664549395,-500.0,0.00016697,2]
[382548123,1756664549425,-758.9,0.00016697,2]
[382548124,1756664549456,-480.0,0.00016697,2]
[382548125,1756664550021,-2433.0333479,0.00016697,2]
[382548126,1756664550074,-669.96,0.00016697,2]
[382548127,1756664550104,-480.0,0.00016697,2]
[382548128,1756664550133,-480.0,0.00016697,2]
[382548129,1756664550160,-480.0,0.00016697,2]
[382548130,1756664550189,-300.08,0.00016697,2]
[382548131,1756664550360,-179.92,0.00016697,2]
[382548132,1756664550388,-480.0,0.00016697,2]
[382548133,1756664550416,-480.0,0.00016697,2]
[382548134,1756664559706,599.91412644,0.00016598,2]
[382548135,1756664562018,2120.24587356,0.00016697,2]
[382548136,1756664562043,2879.75412644,0.00016697,2]
[382548137,1756664562268,480.0,0.00016697,2]
[382548138,1756664562666,480.0,0.00016697,2]
[382548139,1756664563302,480.0,0.00016697,2]
[382548140,1756664564290,480.0,0.00016697,2]
[382548141,1756664564351,200.24587356,0.00016697,2]
[382548142,1756664564375,279.75412644,0.00016697,2]
[382548143,1756664571704,864.66,0.00016697,2]
[382548144,1756664572457,480.0,0.00016697,2]
[382548145,1756664572979,480.0,0.00016697,2]
[382548146,1756664578853,480.0,0.00016697,2]
[382548147,1756664580368,213.2438617,0.00015788,2]
[382548148,1756664581839,480.0,0.00016697,2]
[382548149,1756664583681,300.0,0.00016697,2]
[382548150,1756664589991,656.75,0.00016697,2]
[382548151,1756664591880,659.14,0.00016697,2]
[382548152,1756664595378,106.45201186,0.00016697,2]
[382548153,1756664595403,373.54798814,0.00016697,2]
[382548154,1756664598371,512.8,0.00016697,2]
[382548155,1756664599063,875.43,0.00016697,2]
[382548156,1756664600492,480.0,0.00016697,2]
[382548157,1756664606821,480.0,0.00016697,2]
[382548158,1756664606889,480.0,0.00016697,2]
[382548159,1756664609810,480.0,0.00016697,2]
[382548160,1756664610154,769.99,0.00016697,2]
[382548161,1756664612902,2485.64274553,0.00016696,2]
[382548162,1756664614958,480.0,0.00016697,2]
[382548163,1756664619611,480.0,0.00016697,2]
[382548164,1756664625778,548.23201186,0.00015789,2]
[382548165,1756664625802,5000.0,0.00015789,2]
[382548166,1756664625825,5000.0,0.00015789,2]
[382548167,1756664625847,5000.0,0.00015789,2]
[382548168,1756664625868,5000.0,0.00015789,2]
[382548169,1756664625891,5000.0,0.00015789,2]
[382548170,1756664625913,5000.0,0.00015789,2]
[382548171,1756664625936,5000.0,0.00015789,2]
[382548172,1756664625958,5000.0,0.00015789,2]
[382548173,1756664625979,5000.0,0.00015789,2]
[382548174,1756664626003,5000.0,0.00015789,2]
[382548175,1756664626026,5000.0,0.00015789,2]
[382548176,1756664626049,5000.0,0.00015789,2]
[382548177,1756664626072,1953.06870854,0.00015789,2]
[382548178,1756664628858,909.08,0.00016697,2]
[382548179,1756664631072,480.0,0.00016697,2]
[382548180,1756664631364,480.0,0.00016697,2]
[382548181,1756664635618,1177.85129146,0.00016697,2]
[382548182,1756664635644,620.86870854,0.00016697,2]
[382548183,1756664637689,4379.13129146,0.00016697,2]
[382548184,1756664637712,620.86870854,0.00016697,2]
[382548185,1756664638718,480.0,0.00016697,2]
[382548186,1756664645638,3899.13129146,0.00016697,2]
[382548187,1756664645662,1100.86870854,0.00016697,2]
[382548188,1756664646616,737.14,0.00016697,2]
[382548189,1756664648877,523.01,0.00016697,2]
[382548190,1756664651930,480.0,0.00016697,2]
[382548191,1756664653726,2158.98129146,0.00016697,2]
[382548192,1756664653751,2841.01870854,0.00016697,2]
[382548193,1756664655442,480.0,0.00016697,2]
[382548194,1756664659652,480.0,0.00016697,2]
[382548195,1756664660891,480.0,0.00016697,2]
[382548196,1756664661532,718.98129146,0.00016697,2]
[382548197,1756664661555,4281.01870854,0.00016697,2]
[382548198,1756664668034,718.98129146,0.00016697,2]
[382548199,1756664668057,79.55870854,0.00016697,2]
[382548200,1756664668463,161.93404135,0.00016697,2]
[382548201,1756664671229,480.0,0.00016697,2]
[382548202,1756664671420,480.0,0.00016696,2]
[382548203,1756664672657,1695.9,0.00016697,2]
[382548204,1756664678259,2102.60725011,0.00016697,2]
[382548205,1756664678282,2897.39274989,0.00016697,2]
[382548206,1756664678791,480.0,0.00016697,2]
[382548207,1756664678833,480.0,0.00016697,2]
[382548208,1756664680940,480.0,0.00016697,2]
[382548209,1756664681198,662.60725011,0.00016697,2]
[382548210,1756664681221,206.41274989,0.00016697,2]
[382548211,1756664681492,386.69873926,0.0001662,2]
[382548212,1756664683826,480.0,0.00016697,2]
[382548213,1756664684055,1161.46,0.00016697,2]
[382548214,1756664686038,2765.42851085,0.00016697,2]
[382548215,1756664686060,2234.57148915,0.00016697,2]
[382548216,1756664697756,480.0,0.00016696,2]
[382548217,1756664701908,480.0,0.00016697,2]
[382548218,1756664702162,1805.42851085,0.00016697,2]
[382548219,1756664702188,3194.57148915,0.00016697,2]
[382548220,1756664702365,300.0,0.00016697,2]
[382548221,1756664705154,480.0,0.00016697,2]
[382548222,1756664705317,480.0,0.00016697,2]
[382548223,1756664710523,545.42851085,0.00016697,2]
[382548224,1756664710551,315.48148915,0.00016697,2]
[382548225,1756664710610,1658.33,0.00016697,2]
[382548226,1756664712809,879.83,0.00016696,2]
[382548227,1756664712979,480.0,0.00016697,2]
[382548229,1756664716984,480.0,0.00016697,2]
[382548230,1756664717235,480.0,0.00016697,2]
[382548231,1756664717942,151.0,0.00016697,2]
[382548232,1756664718958,480.0,0.00016697,2]
[382548233,1756664719046,75.35851085,0.00016697,2]
[382548234,1756664719071,75.64148915,0.00016697,2]
[382548235,1756664720068,480.0,0.00016697,2]
[382548236,1756664721097,279.98960685,0.00016697,2]
[382548238,1756664722509,405.43790405,0.00016697,2]
[382548239,1756664723493,1158.344623,0.00013699,2]
[382548240,1756664724785,480.0,0.00016697,2]
[382548241,1756664725227,2120.58637695,0.00016697,2]
[382548242,1756664725252,2879.41362305,0.00016697,2]
[382548243,1756664727780,480.0,0.00016697,2]
[382548244,1756664730289,1059.59,0.00016696,2]
[382548245,1756664731258,480.0,0.00016697,2]
[382548246,1756664733344,100.99637695,0.00016697,2]
[382548247,1756664733370,379.00362305,0.00016697,2]
[382548248,1756664738766,867.96,0.00016697,2]
[382548249,1756664741108,480.0,0.00016697,2]
[382548250,1756664745036,658.87,0.00016697,2]
[382548251,1756664747423,928.05,0.00016697,2]
[382548252,1756664751929,480.0,0.00016697,2]
[382548253,1756664756222,557.8,0.00016697,2]
[382548254,1756664756782,480.0,0.00016697,2]
[382548255,1756664757057,741.09,0.00016697,2]
[382548256,1756664758753,568.74,0.00016697,2]
[382548257,1756664766145,696.22,0.00016697,2]
[382548258,1756664767332,706.76,0.00016697,2]
[382548259,1756664767368,642.44637695,0.00016697,2]
[382548260,1756664767390,43.30362305,0.00016697,2]
[382548261,1756664774600,480.0,0.00016697,2]
[382548262,1756664778789,1080.25,0.00016697,2]
[382548263,1756664783114,538.41,0.00016697,2]
[382548264,1756664783642,2858.03637695,0.00016697,2]
[382548265,1756664783666,333.42362305,0.00016697,2]
[382548266,1756664788762,578.12,0.00016697,2]
[382548267,1756664791818,4088.45637695,0.00016697,2]
[382548268,1756664791847,911.54362305,0.00016697,2]
[382548270,1756664799519,4088.45637695,0.00016697,2]
[382548271,1756664799548,911.54362305,0.00016697,2]
[382548272,1756664801901,480.0,0.00016697,2]
[382548273,1756664804539,480.0,0.00016697,2]
[382548274,1756664808214,613.1,0.00016697,2]
[382548275,1756664808987,1541.27,0.00016697,2]
[382548276,1756664811448,974.08637695,0.00016697,2]
[382548277,1756664811473,222.97362305,0.00016697,2]
[382548278,1756664813106,480.0,0.00016697,2]
[382548279,1756664814826,480.0,0.00016697,2]
[382548280,1756664814936,480.0,0.00016697,2]
[382548281,1756664816852,480.0,0.00016697,2]
[382548282,1756664819245,480.0,0.00016697,2]
[382548283,1756664819726,480.0,0.00016697,2]
[382548286,1756664822781,480.0,0.00016697,2]
[382548287,1756664824989,759.6,0.00016697,2]
[382548288,1756664825075,480.0,0.00016697,2]
[382548289,1756664826089,177.42637695,0.00016697,2]
[382548290,1756664826117,302.57362305,0.00016697,2]
[382548291,1756664827853,620.19,0.00016697,2]
[382548292,1756664828976,480.0,0.00016697,2]
[382548293,1756664831054,889.86,0.00016697,2]
[382548294,1756664831648,2006.06785404,0.00016697,2]
[382548295,1756664835373,666.0,0.00015793,2]
[382548296,1756664838349,35.30852291,0.00016696,2]
[382548297,1756664838373,645.79147709,0.00016696,2]
[382548298,1756664839514,480.0,0.00016697,2]
[382548299,1756664840491,3874.20852291,0.00016697,2]
[382548300,1756664840516,1125.79147709,0.00016697,2]
[382548301,1756664840693,650.18,0.00016697,2]
[382548302,1756664844280,484.91050785,0.00016697,2]
[382548303,1756664846542,612.73,0.00016697,2]
[382548304,1756664846996,480.0,0.00016696,2]
[382548305,1756664847763,480.0,0.00016697,2]
[382548306,1756664849100,1166.38801506,0.00016697,2]
[382548307,1756664849124,3833.61198494,0.00016697,2]
[382548308,1756664850257,804.52,0.00016697,2]
[382548309,1756664851230,361.86801506,0.00016697,2]
[382548310,1756664851253,301.18198494,0.00016697,2]
[382548311,1756664851516,480.0,0.00016696,2]
[382548312,1756664853194,2655.20928715,0.00016697,2]
[382548313,1756664859565,924.02,0.00016697,2]
[382548314,1756664862056,480.0,0.00016696,2]
[382548315,1756664864299,159.58872791,0.00016697,2]
[382548316,1756664864324,320.41127209,0.00016697,2]
[382548317,1756664864923,4679.58872791,0.00016697,2]
[382548318,1756664864948,320.41127209,0.00016697,2]
[382548319,1756664865990,480.0,0.00016697,2]
[382548320,1756664868236,480.0,0.00016697,2]
[382548321,1756664869200,3719.58872791,0.00016697,2]
[382548322,1756664869225,1916.46127209,0.00016697,2]
[382548323,1756664869368,1946.42667832,0.00016697,2]
[382548324,1756664875999,880.14,0.00016697,2]
[382548325,1756664876739,256.97204959,0.00016697,2]
[382548326,1756664876764,4372.07795041,0.00016697,2]
[382548327,1756664876887,480.0,0.00016697,2]
[382548328,1756664877602,147.92204959,0.00016696,2]
[382548329,1756664877625,1756.85795041,0.00016696,2]
[382548330,1756664877692,480.0,0.00016697,2]
[382548332,1756664883581,300.0,0.00016697,2]
[382548333,1756664883985,926.92,0.00016697,2]
[382548334,1756664884454,480.0,0.00016697,2]
[382548335,1756664886091,481.64,0.00016697,2]
[382548336,1756664887383,574.58204959,0.00016697,2]
[382548337,1756664887409,4425.41795041,0.00016697,2]
[382548339,1756664888600,574.58204959,0.00016697,2]
[382548340,1756664888623,593.97795041,0.00016697,2]
[382548341,1756664892376,544.56,0.00016696,2]
[382548342,1756664894189,816.33,0.00016697,2]
[382548343,1756664897698,2313.67,0.00016697,2]
[382548344,1756664897789,731.46204959,0.00016697,2]
[382548345,1756664897814,473.54795041,0.00016697,2]
[382548346,1756664898602,480.0,0.00016697,2]
[382548347,1756664899072,480.6,0.00016697,2]
[382548348,1756664900644,484.38474804,0.00016697,2]
[382548349,1756664902036,480.0,0.00016697,2]
[382548350,1756664906733,167.40560725,0.0001662,2]
[382548351,1756664909953,480.0,0.00016696,2]
[382548352,1756664910198,555.86,0.00016697,2]
[382548353,1756664911050,480.0,0.00016697,2]
[382548354,1756664913442,480.0,0.00016697,2]
[382548355,1756664914171,438.2016943,0.00016697,2]
[382548356,1756664914196,41.7983057,0.00016697,2]
[382548357,1756664918381,480.0,0.00016697,2]
[382548359,1756664925748,480.0,0.00016697,2]
[382548360,1756664929562,480.0,0.00016697,2]
[382548361,1756664933757,1162.75,0.00016696,2]
[382548362,1756664934021,480.0,0.00016697,2]
[382548363,1756664934227,835.55,0.00016697,2]
[382548364,1756664939875,480.0,0.00016697,2]
[382548365,1756664941086,480.0,0.00016697,2]
[382548366,1756664941219,79.9016943,0.00016697,2]